fUST/lending_fUST_20260118
["ID","MTS","AMOUNT","RATE_DAILY","PERIOD"]
[402438733,1768677098356,-500.0,0.00018356,3]
[402438734,1768677098366,-500.0,0.00018356,3]
[402438735,1768677098376,-500.0,0.00018356,3]
[402438736,1768677098386,-530.75,0.00018356,3]
[402438737,1768677098395,-814.58,0.00018356,3]
[402438738,1768677098406,-500.0,0.00018356,3]
[402438739,1768677098416,-1103.53,0.00018356,3]
[402438740,1768677098426,-863.13,0.00018356,3]
[402438741,1768677098436,-500.0,0.00018356,3]
[402438742,1768677098446,-688.71,0.00018356,3]
[402438743,1768677098456,-500.0,0.00018356,3]
[402438744,1768677098466,-653.28,0.00018356,3]
[402438745,1768677098475,-500.0,0.00018356,3]
[402438746,1768677098485,-526.42,0.00018356,3]
[402438747,1768677098495,-500.0,0.00018356,3]
[402438748,1768677098505,-821.72,0.00018356,3]
[402438749,1768677098514,-500.0,0.00018356,3]
[402438750,1768677098524,-1355.32,0.00018356,3]
[402438751,1768677098535,-500.0,0.00018356,3]
[402438752,1768677098544,-500.0,0.00018356,3]
[402438753,1768677098554,-526.18,0.00018356,3]
[402438754,1768677098564,-859.78,0.00018356,3]
[402438755,1768677098574,-500.0,0.00018356,3]
[402438756,1768677098585,-500.0,0.00018356,3]
[402438757,1768677098594,-500.0,0.00018356,3]
[402438758,1768677098604,-796.76,0.00018356,3]
[402438759,1768677098614,-500.0,0.00018356,3]
[402438760,1768677098623,-947.02,0.00018356,3]
[402438761,1768677098633,-500.0,0.00018356,3]
[402438762,1768677098642,-500.0,0.00018356,3]
[402438763,1768677098652,-1676.18,0.00018356,3]
[402438764,1768677098662,-500.0,0.00018356,3]
[402438765,1768677098673,-500.0,0.00018356,3]
[402438766,1768677098683,-1422.11,0.00018356,3]
[402438767,1768677098693,-700.16,0.00018356,3]
[402438768,1768677098703,-500.0,0.00018356,3]
[402438769,1768677098713,-1271.86,0.00018356,3]
[402438770,1768677098723,-535.99950992,0.00018356,3]
[402438771,1768677098734,-500.0,0.00018356,3]
[402438772,1768677098744,-555.26,0.00018356,3]
[402438773,1768677098753,-1185.41,0.00018356,3]
[402438774,1768677098763,-972.25,0.00018356,3]
[402438775,1768677098773,-500.0,0.00018356,3]
[402438776,1768677098783,-500.0,0.00018356,3]
[402438777,1768677098793,-500.0,0.00018356,3]
[402438778,1768677098803,-1029.8,0.00018356,3]
[402438779,1768677098812,-500.0,0.00018356,3]
[402438780,1768677098823,-1204.44,0.00018356,3]
[402438781,1768677098832,-500.0,0.00018356,3]
[402438782,1768677098841,-778.71,0.00018356,3]
[402438783,1768677098851,-1032.1,0.00018356,3]
[402438784,1768677098861,-500.0,0.00018356,3]
[402438785,1768677098871,-500.0,0.00018356,3]
[402438786,1768677098881,-500.0,0.00018356,3]
[402438787,1768677098891,-862.94,0.00018356,3]
[402438788,1768677098901,-500.0,0.00018356,3]
[402438789,1768677098910,-314.91278331,0.00018356,3]
[402438790,1768677098920,-500.0,0.00018356,3]
[402438791,1768677098929,-824.42,0.00018356,3]
[402438792,1768677098938,-972.71,0.00018356,3]
[402438793,1768677098948,-505.28,0.00018356,3]
[402438794,1768677098959,-562.7811494,0.00018356,3]
[402438795,1768677098970,-676.38,0.00018356,3]
[402438796,1768677098981,-500.0,0.00018356,3]
[402438797,1768677098991,-500.0,0.00018356,3]
[402438798,1768677099001,-500.0,0.00018356,3]
[402438799,1768677099010,-718.46,0.00018356,3]
[402438800,1768677099019,-526.86570409,0.00018356,3]
[402438801,1768677099030,-500.0,0.00018356,3]
[402438802,1768677099039,-795.48,0.00018356,3]
[402438803,1768677099049,-500.0,0.00018356,3]
[402438804,1768677099059,-500.0,0.00018356,3]
[402438805,1768677099068,-1494.36,0.00018356,3]
[402438806,1768677099257,-500.0,0.00018356,3]
[402438807,1768677099282,-527.51,0.00018356,3]
[402438808,1768677099292,-1636.62,0.00018356,3]
[402438809,1768677099303,-500.0,0.00018356,3]
[402438810,1768677099312,-192.04137891,0.00018356,3]
[402438811,1768677099323,-955.79,0.00018356,3]
[402438812,1768677099333,-169.97384605,0.00018356,3]
[402438813,1768677099345,-580.87,0.00018356,3]
[402438814,1768677099355,-752.06,0.00018356,3]
[402438815,1768677099365,-500.0,0.00018356,3]
[402438816,1768677099374,-905.51,0.00018356,3]
[402438817,1768677099383,-500.0,0.00018356,3]
[402438818,1768677099392,-1208.54,0.00018356,3]
[402438819,1768677099402,-1438.2,0.00018356,3]
[402438820,1768677099411,-1688.51,0.00018356,3]
[402438821,1768677099421,-500.0,0.00018356,3]
[402438822,1768677099431,-932.73,0.00018356,3]
[402438823,1768677099441,-500.0,0.00018356,3]
[402438824,1768677099450,-706.53,0.00018356,3]
[402438825,1768677099458,-947.08,0.00018356,3]
[402438826,1768677099468,-1057.27,0.00018356,3]
[402438827,1768677099477,-2004.45,0.00018356,3]
[402438828,1768677099486,-500.0,0.00018356,3]
[402438829,1768677099496,-688.08,0.00018356,3]
[402438830,1768677099505,-500.0,0.00018356,3]
[402438831,1768677099515,-500.0,0.00018356,3]
[402438832,1768677099525,-648.33,0.00018356,3]
[402438833,1768677099535,-527.98947312,0.00018356,3]
[402438834,1768677099544,-1181.35,0.00018356,3]
[402438835,1768677099554,-500.0,0.00018356,3]
[402438836,1768677099564,-500.0,0.00018356,3]
[402438837,1768677099574,-500.0,0.00018356,3]
[402438838,1768677099583,-267.54932602,0.00018356,3]
[402438839,1768677099593,-950.08,0.00018356,3]
[402438840,1768677099603,-234.0182413,0.00018356,3]
[402438841,1768677099612,-500.0,0.00018356,3]
[402438842,1768677099622,-500.0,0.00018356,3]
[402438843,1768677099632,-1477.98,0.00018356,3]
[402438844,1768677099642,-1122.16,0.00018356,3]
[402438845,1768677099651,-1022.4,0.00018356,3]
[402438846,1768677099660,-500.0,0.00018356,3]
[402438847,1768677099670,-500.0,0.00018356,3]
[402438848,1768677099680,-500.0,0.00018356,3]
[402438849,1768677099689,-1748.87,0.00018356,3]
[402438850,1768677099699,-506.9,0.00018356,3]
[402438851,1768677099708,-500.0,0.00018356,3]
[402438852,1768677099718,-634.5,0.00018356,3]
[402438853,1768677099727,-1501.65,0.00018356,3]
[402438854,1768677099737,-1015.88,0.00018356,3]
[402438855,1768677099746,-966.6,0.00018356,3]
[402438856,1768677099755,-500.0,0.00018356,3]
[402438857,1768677099765,-531.86,0.00018356,3]
[402438858,1768677099774,-500.0,0.00018356,3]
[402438859,1768677099783,-770.84,0.00018356,3]
[402438860,1768677099793,-1392.58,0.00018356,3]
[402438861,1768677099802,-500.0,0.00018356,3]
[402438862,1768677099812,-500.0,0.00018356,3]
[402438863,1768677099821,-1290.77,0.00018356,3]
[402438864,1768677099830,-500.0,0.00018356,3]
[402438865,1768677099840,-500.0,0.00018356,3]
[402438866,1768677099849,-1293.8,0.00018356,3]
[402438867,1768677099859,-1240.0,0.00018356,3]
[402438868,1768677099868,-500.0,0.00018356,3]
[402438869,1768677099878,-942.26,0.00018356,3]
[402438870,1768677099887,-500.0,0.00018356,3]
[402438871,1768677099896,-680.81,0.00018356,3]
[402438872,1768677099905,-500.0,0.00018356,3]
[402438873,1768677099915,-863.4,0.00018356,3]
[402438874,1768677099925,-500.0,0.00018356,3]
[402438875,1768677099935,-500.0,0.00018356,3]
[402438876,1768677099945,-500.0,0.00018356,3]
[402438877,1768677099955,-860.12,0.00018356,3]
[402438878,1768677099964,-1611.57,0.00018356,3]
[402438879,1768677099973,-500.0,0.00018356,3]
[402438880,1768677099983,-882.95,0.00018356,3]
[402438881,1768677099992,-729.29,0.00018356,3]
[402438882,1768677100002,-451.2,0.00018356,3]
[402438883,1768677100011,-1300.92,0.00018356,3]
[402438884,1768677100020,-500.0,0.00018356,3]
[402438885,1768677100030,-232.64036101,0.00018356,3]
[402438886,1768677100041,-500.0,0.00018356,3]
[402438887,1768677100050,-500.0,0.00018356,3]
[402438888,1768677100059,-500.0,0.00018356,3]
[402438889,1768677100068,-917.63,0.00018356,3]
[402438890,1768677100078,-1000.0,0.00018356,2]
[402438891,1768677100091,-500.0,0.00018356,3]
[402438892,1768677100101,-500.0,0.00018356,3]
[402438893,1768677100110,-547.52,0.00018356,3]
[402438894,1768677100120,-500.0,0.00018356,3]
[402438895,1768677100129,-1231.73,0.00018356,3]
[402438896,1768677100139,-821.19,0.00018356,3]
[402438897,1768677100149,-500.0,0.00018356,3]
[402438898,1768677100158,-500.0,0.00018356,3]
[402438899,1768677100168,-500.0,0.00018356,3]
[402438900,1768677100177,-1266.79,0.00018356,3]
[402438901,1768677100187,-520.45,0.00018356,3]
[402438902,1768677100197,-522.28,0.00018356,3]
[402438903,1768677100207,-610.79,0.00018356,3]
[402438904,1768677100217,-500.0,0.00018356,3]
[402438905,1768677100226,-654.08,0.00018356,3]
[402438906,1768677100236,-571.51,0.00018356,3]
[402438907,1768677100246,-500.0,0.00018356,3]
[402438908,1768677100257,-500.0,0.00018356,3]
[402438909,1768677100273,-500.0,0.00018356,3]
[402438910,1768677100282,-500.0,0.00018356,3]
[402438911,1768677100291,-768.76,0.00018356,3]
[402438912,1768677100302,-500.0,0.00018356,3]
[402438913,1768677100312,-788.51,0.00018356,3]
[402438914,1768677100322,-500.0,0.00018356,3]
[402438915,1768677100331,-500.0,0.00018356,3]
[402438916,1768677100341,-500.0,0.00018356,3]
[402438917,1768677100352,-500.0,0.00018356,3]
[402438918,1768677100361,-532.99,0.00018356,3]
[402438919,1768677100371,-500.0,0.00018356,3]
[402438920,1768677100380,-500.0,0.00018356,3]
[402438921,1768677100390,-500.0,0.00018356,3]
[402438922,1768677100399,-500.0,0.00018356,3]
[402438923,1768677100409,-609.57,0.00018356,3]
[402438924,1768677100419,-306.16209203,0.00018356,3]
[402438925,1768677100429,-982.5,0.00018356,3]
[402438926,1768677100439,-500.0,0.00018356,3]
[402438927,1768677100449,-711.95,0.00018356,3]
[402438928,1768677100463,-501.93342136,0.00018356,3]
[402438929,1768677100483,-1220.69,0.00018356,3]
[402438930,1768677100504,-524.68,0.00018356,3]
[402438931,1768677100514,-500.0,0.00018356,3]
[402438932,1768677100523,-1421.24,0.00018356,3]
[402438933,1768677100533,-500.0,0.00018356,3]
[402438934,1768677100543,-500.0,0.00018356,3]
[402438935,1768677100553,-698.89,0.00018356,3]
[402438936,1768677100562,-521.62,0.00018356,3]
[402438937,1768677100572,-500.0,0.00018356,3]
[402438938,1768677100581,-500.0,0.00018356,3]
[402438939,1768677100591,-1628.67,0.00018356,3]
[402438940,1768677100600,-714.42,0.00018356,3]
[402438941,1768677100610,-500.0,0.00018356,3]
[402438942,1768677100620,-500.0,0.00018356,3]
[402438943,1768677100629,-769.6,0.00018356,3]
[402438944,1768677100639,-882.36,0.00018356,3]
[402438945,1768677100648,-937.01,0.00018356,3]
[402438946,1768677100658,-1071.96,0.00018356,3]
[402438947,1768677100667,-272.32832549,0.00018356,3]
[402438948,1768677100676,-2532.74,0.00018356,3]
[402438949,1768677100686,-608.0,0.00018356,3]
[402438950,1768677100706,-945.0,0.00018356,3]
[402438951,1768677100715,-500.0,0.00018356,3]
[402438952,1768677100725,-500.0,0.00018356,3]
[402438953,1768677100734,-500.0,0.00018356,3]
[402438954,1768677100744,-500.0,0.00018356,3]
[402438955,1768677100753,-724.98,0.00018356,3]
[402438956,1768677100763,-500.0,0.00018356,3]
[402438957,1768677100773,-1226.14,0.00018356,3]
[402438958,1768677100784,-1192.38,0.00018356,3]
[402438959,1768677100794,-500.0,0.00018356,3]
[402438960,1768677100804,-1440.02,0.00018356,3]
[402438961,1768677100813,-500.0,0.00018356,3]
[402438962,1768677100824,-500.0,0.00018356,3]
[402438963,1768677100834,-500.0,0.00018356,3]
[402438964,1768677100844,-563.95,0.00018356,3]
[402438965,1768677100853,-500.0,0.00018356,3]
[402438966,1768677100863,-888.73,0.00018356,3]
[402438967,1768677100873,-1322.85,0.00018356,3]
[402438968,1768677100882,-577.24,0.00018356,3]
[402438969,1768677100892,-500.0,0.00018356,3]
[402438970,1768677100903,-593.62,0.00018356,3]
[402438971,1768677100915,-316.32438621,0.00018356,3]
[402438972,1768677100925,-558.99,0.00018356,3]
[402438973,1768677100936,-943.41,0.00018356,3]
[402438974,1768677100954,-500.0,0.00018356,3]
[402438975,1768677100963,-507.13,0.00018356,3]
[402438976,1768677100973,-878.96,0.00018356,3]
[402438977,1768677100982,-500.0,0.00018356,3]
[402438978,1768677100992,-500.0,0.00018356,3]
[402438979,1768677101002,-595.67,0.00018356,3]
[402438980,1768677101011,-500.0,0.00018356,3]
[402438981,1768677101021,-960.34,0.00018356,3]
[402438982,1768677101030,-500.0,0.00018356,3]
[402438983,1768677101040,-764.35,0.00018356,3]
[402438984,1768677101057,-500.0,0.00018356,3]
[402438985,1768677101067,-1333.16,0.00018356,3]
[402438986,1768677101077,-500.0,0.00018356,3]
[402438987,1768677101087,-500.0,0.00018356,3]
[402438988,1768677101098,-500.0,0.00018356,3]
[402438989,1768677101108,-1834.32,0.00018356,3]
[402438990,1768677101118,-1717.69,0.00018356,3]
[402438991,1768677101128,-1272.0,0.00018356,3]
[402438992,1768677101138,-500.0,0.00018356,3]
[402438993,1768677101148,-968.64,0.00018356,3]
[402438994,1768677101158,-500.0,0.00018356,3]
[402438995,1768677101169,-195.7,0.00018356,2]
[402438996,1768677101179,-1630.85,0.00018356,3]
[402438997,1768677101189,-1384.14,0.00018356,3]
[402438998,1768677101199,-680.46,0.00018356,3]
[402438999,1768677101211,-233.73958295,0.00018356,3]
[402439000,1768677101221,-668.86,0.00018356,3]
[402439001,1768677101231,-500.0,0.00018356,3]
[402439002,1768677101242,-500.0,0.00018356,3]
[402439003,1768677101252,-154.96887616,0.00018356,3]
[402439004,1768677101267,-500.0,0.00018356,3]
[402439005,1768677101277,-1316.96,0.00018356,3]
[402439006,1768677101287,-500.0,0.00018356,3]
[402439007,1768677101296,-500.0,0.00018356,3]
[402439008,1768677101307,-500.0,0.00018356,3]
[402439009,1768677101317,-500.0,0.00018356,3]
[402439010,1768677101327,-706.96,0.00018356,3]
[402439011,1768677101337,-500.0,0.00018356,3]
[402439012,1768677101348,-500.0,0.00018356,3]
[402439013,1768677101359,-583.22605007,0.00018356,3]
[402439014,1768677101368,-500.0,0.00018356,3]
[402439015,1768677101378,-1200.0,0.00018356,2]
[402439016,1768677101388,-895.54,0.00018356,3]
[402439017,1768677101398,-693.13,0.00018356,3]
[402439018,1768677101408,-1368.68,0.00018356,3]
[402439019,1768677101418,-500.0,0.00018356,3]
[402439020,1768677101429,-500.0,0.00018356,3]
[402439021,1768677101439,-1071.26,0.00018356,3]
[402439022,1768677101449,-854.25,0.00018356,3]
[402439023,1768677101459,-822.61,0.00018356,3]
[402439024,1768677101470,-1040.52,0.00018356,3]
[402439025,1768677101480,-500.0,0.00018356,3]
[402439026,1768677101490,-500.0,0.00018356,3]
[402439027,1768677101500,-1915.54,0.00018356,3]
[402439028,1768677101510,-591.65,0.00018356,3]
[402439029,1768677101520,-1390.83,0.00018356,3]
[402439030,1768677101530,-500.0,0.00018356,3]
[402439031,1768677101544,-500.0,0.00018356,3]
[402439032,1768677101554,-500.0,0.00018356,3]
[402439033,1768677101564,-1757.22,0.00018356,3]
[402439034,1768677101574,-500.0,0.00018356,3]
[402439035,1768677101585,-286.8888167,0.00018356,3]
[402439036,1768677101595,-838.7,0.00018356,3]
[402439037,1768677101606,-500.0,0.00018356,3]
[402439038,1768677101616,-500.0,0.00018356,3]
[402439039,1768677101626,-777.41,0.00018356,3]
[402439040,1768677101636,-1043.16,0.00018356,3]
[402439041,1768677101646,-1407.98,0.00018356,3]
[402439042,1768677101657,-505.87,0.00018356,3]
[402439043,1768677101667,-500.0,0.00018356,3]
[402439044,1768677101677,-500.0,0.00018356,3]
[402439045,1768677101687,-500.0,0.00018356,3]
[402439046,1768677101697,-739.58,0.00018356,3]
[402439047,1768677101707,-856.56,0.00018356,3]
[402439048,1768677101717,-500.0,0.00018356,3]
[402439049,1768677101727,-500.0,0.00018356,3]
[402439050,1768677101737,-1416.3,0.00018356,3]
[402439051,1768677101747,-500.0,0.00018356,3]
[402439052,1768677101758,-500.0,0.00018356,3]
[402439053,1768677101768,-500.0,0.00018356,3]
[402439054,1768677101778,-500.0,0.00018356,3]
[402439055,1768677101893,-500.0,0.00018356,3]
[402439056,1768677101903,-1545.1,0.00018356,3]
[402439057,1768677101913,-513.29,0.00018356,3]
[402439058,1768677101923,-1494.01,0.00018356,3]
[402439059,1768677101932,-1051.96,0.00018356,3]
[402439060,1768677101942,-504.64,0.00018356,3]
[402439061,1768677101952,-500.0,0.00018356,3]
[402439062,1768677101961,-500.0,0.00018356,3]
[402439063,1768677101971,-741.79,0.00018356,3]
[402439064,1768677101980,-500.0,0.00018356,3]
[402439065,1768677101989,-709.42,0.00018356,3]
[402439066,1768677101998,-500.0,0.00018356,3]
[402439067,1768677102007,-500.0,0.00018356,3]
[402439068,1768677102016,-500.0,0.00018356,3]
[402439069,1768677102025,-1957.51,0.00018356,3]
[402439070,1768677102035,-1860.69,0.00018356,3]
[402439071,1768677102044,-627.94,0.00018356,3]
[402439072,1768677102053,-762.35,0.00018356,3]
[402439073,1768677102062,-500.0,0.00018356,3]
[402439074,1768677102073,-505.92,0.00018356,3]
[402439075,1768677102083,-898.93,0.00018356,3]
[402439076,1768677102092,-500.0,0.00018356,3]
[402439077,1768677102102,-500.0,0.00018356,3]
[402439078,1768677102112,-545.77,0.00018356,3]
[402439079,1768677102121,-500.0,0.00018356,3]
[402439080,1768677102131,-512.57740605,0.00018356,3]
[402439081,1768677102140,-1944.24,0.00018356,3]
[402439082,1768677102149,-195.78734149,0.00018356,3]
[402439083,1768677102159,-1502.15,0.00018356,3]
[402439084,1768677102168,-500.0,0.00018356,3]
[402439085,1768677102178,-1665.75,0.00018356,3]
[402439086,1768677102187,-607.74969419,0.00018356,3]
[402439087,1768677102196,-1236.21,0.00018356,3]
[402439088,1768677102206,-624.16,0.00018356,3]
[402439089,1768677102216,-2175.59,0.00018356,3]
[402439090,1768677102225,-500.0,0.00018356,3]
[402439091,1768677102235,-308.42481472,0.00018356,3]
[402439092,1768677102244,-500.0,0.00018356,3]
[402439093,1768677102256,-500.0,0.00018356,3]
[402439094,1768677102269,-500.0,0.00018356,3]
[402439095,1768677102279,-500.0,0.00018356,3]
[402439096,1768677102288,-500.0,0.00018356,3]
[402439097,1768677102297,-500.0,0.00018356,3]
[402439098,1768677102309,-700.37,0.00018356,3]
[402439099,1768677102318,-500.0,0.00018356,3]
[402439100,1768677102327,-2551.07,0.00018356,3]
[402439101,1768677102336,-500.0,0.00018356,3]
[402439102,1768677102345,-500.0,0.00018356,3]
[402439103,1768677102355,-1022.84,0.00018356,3]
[402439104,1768677102364,-500.0,0.00018356,3]
[402439105,1768677102373,-500.0,0.00018356,3]
[402439106,1768677102382,-1319.94,0.00018356,3]
[402439107,1768677102392,-500.0,0.00018356,3]
[402439108,1768677102401,-503.64,0.00018356,3]
[402439109,1768677102411,-813.92,0.00018356,3]
[402439110,1768677102420,-806.92,0.00018356,3]
[402439111,1768677102431,-861.36,0.00018356,3]
[402439112,1768677102441,-500.0,0.00018356,3]
[402439113,1768677102451,-748.9,0.00018356,3]
[402439114,1768677102462,-2453.42,0.00018356,3]
[402439115,1768677102471,-590.49,0.00018356,3]
[402439116,1768677102481,-500.0,0.00018356,3]
[402439117,1768677102490,-1552.9,0.00018356,3]
[402439118,1768677102500,-1695.64,0.00018356,3]
[402439119,1768677102510,-561.4,0.00018356,3]
[402439120,1768677102520,-305.36678079,0.00018356,3]
[402439121,1768677102529,-1568.81,0.00018356,3]
[402439122,1768677102539,-1121.41,0.00018356,3]
[402439123,1768677102549,-1094.15,0.00018356,3]
[402439124,1768677102559,-758.46,0.00018356,3]
[402439125,1768677102569,-500.0,0.00018356,3]
[402439126,1768677102578,-543.12,0.00018356,3]
[402439127,1768677102590,-1285.11,0.00018356,3]
[402439128,1768677102599,-917.14,0.00018356,3]
[402439129,1768677102609,-500.0,0.00018356,3]
[402439130,1768677102619,-948.88,0.00018356,3]
[402439131,1768677102629,-500.0,0.00018356,3]
[402439132,1768677102639,-500.0,0.00018356,3]
[402439133,1768677102652,-1173.22,0.00018356,3]
[402439134,1768677102662,-520.72,0.00018356,3]
[402439135,1768677102672,-660.42,0.00018356,3]
[402439136,1768677102681,-500.0,0.00018356,3]
[402439137,1768677102691,-500.0,0.00018356,3]
[402439138,1768677102703,-714.16,0.00018356,3]
[402439139,1768677102715,-798.37,0.00018356,3]
[402439140,1768677102725,-876.59,0.00018356,3]
[402439141,1768677102734,-500.0,0.00018356,3]
[402439142,1768677102745,-500.0,0.00018356,3]
[402439143,1768677102755,-500.0,0.00018356,3]
[402439144,1768677102764,-509.49,0.00018356,3]
[402439145,1768677102773,-291.36,0.00018356,3]
[402439146,1768677102782,-500.0,0.00018356,3]
[402439147,1768677102791,-2552.27,0.00018356,3]
[402439148,1768677102800,-500.0,0.00018356,3]
[402439149,1768677102809,-609.02,0.00018356,3]
[402439150,1768677102818,-844.39,0.00018356,3]
[402439151,1768677102828,-548.99,0.00018356,3]
[402439152,1768677102838,-1639.55,0.00018356,3]
[402439153,1768677102848,-578.12,0.00018356,3]
[402439154,1768677102857,-500.0,0.00018356,3]
[402439155,1768677102867,-500.0,0.00018356,3]
[402439156,1768677102877,-1023.93,0.00018356,3]
[402439157,1768677102888,-500.0,0.00018356,3]
[402439158,1768677102897,-1911.06,0.00018356,3]
[402439159,1768677102906,-500.0,0.00018356,3]
[402439160,1768677102918,-500.0,0.00018356,3]
[402439161,1768677102928,-500.0,0.00018356,3]
[402439162,1768677102938,-936.53,0.00018356,3]
[402439163,1768677102947,-1025.38,0.00018356,3]
[402439164,1768677102958,-500.0,0.00018356,3]
[402439165,1768677102970,-575.62,0.00018356,3]
[402439166,1768677102980,-1305.86,0.00018356,3]
[402439167,1768677102990,-500.0,0.00018356,3]
[402439168,1768677103000,-1103.35,0.00018356,3]
[402439169,1768677103010,-3403.79,0.00018356,3]
[402439170,1768677103020,-500.0,0.00018356,3]
[402439171,1768677103030,-978.92,0.00018356,3]
[402439172,1768677103040,-500.0,0.00018356,3]
[402439173,1768677103050,-1480.53,0.00018356,3]
[402439174,1768677103059,-552.87,0.00018356,3]
[402439175,1768677103070,-500.0,0.00018356,3]
[402439176,1768677103080,-860.55,0.00018356,3]
[402439177,1768677103090,-598.38,0.00018356,3]
[402439178,1768677103099,-1148.17,0.00018356,3]
[402439179,1768677103109,-2015.39,0.00018356,3]
[402439180,1768677103121,-500.0,0.00018356,3]
[402439181,1768677103130,-674.52,0.00018356,3]
[402439182,1768677103140,-636.57,0.00018356,3]
[402439183,1768677103150,-1399.24,0.00018356,3]
[402439184,1768677103159,-1168.23,0.00018356,3]
[402439185,1768677103169,-1114.84,0.00018356,3]
[402439186,1768677103179,-2897.63,0.00018356,3]
[402439187,1768677103189,-1569.6,0.00018356,3]
[402439188,1768677103198,-597.82,0.00018356,3]
[402439189,1768677103209,-644.89,0.00018356,3]
[402439190,1768677103219,-1380.77,0.00018356,3]
[402439191,1768677103230,-539.32,0.00018356,3]
[402439192,1768677103241,-500.0,0.00018356,2]
[402439193,1768677103251,-1474.73,0.00018356,3]
[402439194,1768677103265,-1321.15,0.00018356,3]
[402439195,1768677103275,-500.0,0.00018356,3]
[402439197,1768677103285,-539.86,0.00018356,3]
[402439198,1768677103295,-537.6,0.00018356,3]
[402439200,1768677103306,-500.0,0.00018356,3]
[402439201,1768677103316,-1249.71,0.00018356,3]
[402439203,1768677103326,-500.0,0.00018356,3]
[402439204,1768677103336,-500.0,0.00018356,3]
[402439206,1768677103346,-452.01774869,0.00018356,3]
[402439207,1768677103356,-1505.84,0.00018356,3]
[402439208,1768677103366,-500.0,0.00018356,2]
[402439210,1768677103376,-500.0,0.00018356,3]
[402439211,1768677103386,-14376.21,0.00018356,3]
[402439213,1768677103396,-500.0,0.00018356,2]
[402439214,1768677103406,-250.0,0.00018356,2]
[402439216,1768677103417,-681.903083,0.0001836,7]
[402439217,1768677103427,-11211.02013668,0.0001843,2]
[402439219,1768677103437,-601.4293559,0.00018467,16]
[402439220,1768677103449,-12945.7278693,0.000185,2]
[402439222,1768677103459,-728.0,0.00018538,2]
[402439223,1768677103470,-729.0,0.0001857,2]
[402439225,1768677103480,-1059.18977848,0.000186,2]
[402439226,1768677103490,-200.0,0.0001862,7]
[402439228,1768677103500,-200.0,0.0001862,7]
[402439229,1768677103510,-200.0,0.0001862,7]
[402439231,1768677103520,-359877.49717873,0.0001862,2]
[402439253,1768677103994,-258.82956559,0.0001862,2]
[402439273,1768677104404,-500.0,0.00016438,3]
[402439274,1768677104414,-538.41,0.00016438,3]
[402439275,1768677104424,-45.40414288,0.00016438,3]
[402439277,1768677104435,-368.56045753,0.00016438,3]
[402439284,1768677104564,-3e-08,0.00016438,3]
[402439294,1768677104773,-86.03539956,0.00016438,3]
[402439296,1768677104783,-500.0,0.00016438,3]
[402439297,1768677104794,-500.0,0.00016712,3]
[402439299,1768677104803,-49.00984577,0.00016712,3]
[402439300,1768677104815,-450.99015423,0.00016712,3]
[402439302,1768677104825,-500.0,0.00016712,3]
[402439303,1768677104835,-323.48388685,0.00016986,3]